Workbook

Sheet Лист1
N1: Приложение 9 к пояснительной записке 2023 года
A2: Параметры финансового обеспечения реализации государственных программ Ленинградской области в 2022-2025 годах
A4: Наименование | B4: 2022 год уточненный план на 01.08.2022 | E4: 2023 год | J4: 2024 год | N4: 2025 год
B5: Всего | C5: в том числе за счет средств областного бюджета | D5: уд. вес, % | E5: Проект | F5: в том числе за счет средств областного бюджета | H5: уд. вес, % | I5: темп роста, % | J5: Проект | K5: в том числе за счет средств областного бюджета | M5: уд. вес, % | N5: Проект | O5: в том числе за счет средств областного бюджета | Q5: уд. вес, %
F6: тыс. рублей | G6: Темп роста, % | K6: тыс. рублей | L6: Темп роста, % | O6: тыс. рублей | P6: Темп роста, %
A7: 1 | B7: 2 | C7: 3 | D7: 4 | E7: 5 | F7: 6 | G7: 7=6/3 | H7: 8 | I7: 9=5/2 | J7: 10 | K7: 11 | L7: 12=11/6 | M7: 13 | N7: 14 | O7: 15 | P7: 16=15/11 | Q7: 17
A8: Расходы областного бюджета, всего | B8: =B10+B29 -> 191405757.8 | C8: =C10+C29 -> 167690757 | D8: =SUM(D11:D29) -> 100 | E8: =E10+E29 -> 183021803.5 | F8: =F10+F29 -> 164796946.1 | G8: =F8/C8*100 -> 98.27431699 | H8: =SUM(H11:H29) -> 100 | I8: =E8/B8*100 -> 95.61980037 | J8: =J10+J29 -> 175219879.3 | K8: =K10+K29 -> 155106503.6 | L8: =K8/F8*100 -> 94.11976816 | M8: =SUM(M11:M29) -> 100 | N8: =N10+N29 -> 150749727.9 | O8: =O10+O29 -> 150730863.6 | P8: =O8/K8*100 -> 97.17894486 | Q8: =SUM(Q11:Q29) -> 100
A9: из них:
A10: Расходы на реализацию государственных программ Ленинградской области, в том числе: | B10: =SUM(B11:B28) -> 180406846.4 | C10: =SUM(C11:C28) -> 157526119.5 | D10: =B10/$B$8*100 -> 94.25361519 | E10: =SUM(E11:E28) -> 169380531.1 | F10: =SUM(F11:F28) -> 151805300.2 | G10: =F10/C10*100 -> 96.36833605 | H10: =E10/$E$8*100 -> 92.54664082 | I10: =E10/B10*100 -> 93.88808378 | J10: =SUM(J11:J28) -> 164852270.2 | K10: =SUM(K11:K28) -> 145413328.5 | L10: =K10/F10*100 -> 95.78936197 | M10: =J10/$J$8*100 -> 94.08308627 | N10: =SUM(N11:N28) -> 141465383.1 | O10: =SUM(O11:O28) -> 141465383.3 | P10: =O10/K10*100 -> 97.28501834 | Q10: =N10/$N$8*100 -> 93.84121953
A11: Развитие здравоохранения в Ленинградской области | B11: 28262934.6 | C11: 25859973.5 | D11: =B11/$B$8*100 -> 14.76597931 | E11: 26783787.3 | F11: 24892670.7 | G11: =F11/C11*100 -> 96.25945943 | H11: =E11/$E$8*100 -> 14.63420575 | I11: =E11/B11*100 -> 94.76647659 | J11: 27192097.8 | K11: 25198606.5 | L11: =K11/F11*100 -> 101.2290196 | M11: =J11/$J$8*100 -> 15.5188429 | N11: 25833249.1 | O11: 25833249.1 | P11: =O11/K11*100 -> 102.5185623 | Q11: =N11/$N$8*100 -> 17.13651458
A12: Современное образование Ленинградской области | B12: 41474449.2 | C12: 39967618.5 | D12: =B12/$B$8*100 -> 21.66833938 | E12: 42027599.1 | F12: 40424404.2 | G12: 101.1428895 | H12: 22.96316521 | I12: 101.3337125 | J12: 43263559.3 | K12: 41223449.2 | L12: 101.9766401 | M12: 24.69101079 | N12: 41419805.6 | O12: 41419805.7 | P12: 100.4763223 | Q12: 27.4758742
A13: Социальная поддержка отдельных категорий граждан в Ленинградской области | B13: 26743195 | C13: =21136053.4-4666.5 -> 21131386.9 | D13: 13.97199087 | E13: 29619466.5 | F13: 23371734.2 | G13: 110.6019889 | H13: 16.18357263 | I13: 110.7551529 | J13: 30482602.2 | K13: 23814639.7 | L13: 101.8950477 | M13: 17.3967716 | N13: 22272642.5 | O13: 22272642.7 | P13: 93.52500387 | Q13: 14.77458222
A14: Развитие физической культуры и спорта в Ленинградской области | B14: 3943959.8 | C14: 3585043.2 | D14: 2.060523072 | E14: 2271823.4 | F14: 2086847.6 | G14: 58.20983133 | H14: 1.241285659 | I14: 57.60260031 | J14: 1556752.1 | K14: 1356767.2 | L14: 65.01515492 | M14: 0.8884563248 | N14: 1350617.6 | O14: 1350617.5 | P14: 99.54673875 | Q14: 0.8959336901
A15: Развитие культуры в Ленинградской области | B15: 3858939 | C15: 3740585.6 | D15: 2.016103927 | E15: 3499498.5 | F15: 3262318.5 | G15: 87.21411161 | H15: 1.91206645 | I15: 90.68550967 | J15: 2871658.6 | K15: 2857530.8 | L15: 87.59202389 | M15: 1.638888585 | N15: 2664031.8 | O15: 2664031.8 | P15: 93.22845444 | Q15: 1.767188463
A16: Формирование городской среды и обеспечение качественным жильем граждан на территории Ленинградской области | B16: 14271347.8 | C16: =12867588.2-3537368.1 -> 9330220.1 | D16: 7.456070269 | E16: 7233277.1 | F16: 6326071.2 | G16: 67.80195035 | H16: 3.95213956 | I16: 50.68391018 | J16: 5967500.6 | K16: 4547640.1 | L16: 71.88727342 | M16: 3.405721214 | N16: 1530259.8 | O16: 1530259.7 | P16: 33.64953396 | Q16: 1.015099544
A17: Обеспечение устойчивого функционирования и развития коммунальной и инженерной инфраструктуры и повышение энергоэффективности в Ленинградской области | B17: 9951867.3 | C17: =9316948.4-150179.4 -> 9166769 | D17: 5.199356286 | E17: 8660945.3 | F17: 8016604.7 | G17: 87.45289316 | H17: 4.732193178 | I17: 87.02834392 | J17: 8283833.1 | K17: 7851973.1 | L17: 97.94636749 | M17: 4.727678807 | N17: 9400069.5 | O17: 9400069.5 | P17: 119.7160176 | Q17: 6.235546578
A18: Безопасность Ленинградской области | B18: 2756238.3 | C18: 2756238.3 | D18: 1.43999759 | E18: 3035331.4 | F18: 3035331.5 | G18: 110.1258734 | H18: 1.658453442 | I18: 110.1258697 | J18: 2746195 | K18: 2746195.2 | L18: 90.47430898 | M18: 1.567285065 | N18: 2749062.5 | O18: 2749062.6 | P18: 100.1044136 | Q18: 1.823593673
A19: Охрана окружающей среды Ленинградской области | B19: 2707199.1 | C19: 2094292.3 | D19: 1.414377044 | E19: 2590415.7 | F19: 2134089.9 | G19: 101.9002887 | H19: 1.415359072 | I19: 95.68619094 | J19: 2597042.3 | K19: 2078676.8 | L19: 97.40343179 | M19: 1.482161904 | N19: 2079144.3 | O19: 2079144.3 | P19: 100.0224903 | Q19: 1.379202688
A20: Цифровое развитие Ленинградской области | B20: 3193005.2 | C20: 3188207.2 | D20: 1.668186598 | E20: 3360222.6 | F20: 3296205.8 | G20: 103.3874398 | H20: 1.835968467 | I20: 105.2369912 | J20: 3451561.9 | K20: 3208415.5 | L20: 97.33662564 | M20: 1.969846066 | N20: 3087318.5 | O20: 3087318.5 | P20: 96.22564471 | Q20: 2.047976168
A21: Стимулирование экономической активности Ленинградской области | B21: 2739314.5 | C21: 2448899.3 | D21: 1.431155746 | E21: 2530331.1 | F21: 2370784.2 | G21: 96.8101955 | H21: 1.382529869 | I21: 92.37095996 | J21: 1847999.5 | K21: 1690209.4 | L21: 71.29326237 | M21: 1.054674565 | N21: 1083380.4 | O21: 1083380.5 | P21: 64.09741302 | Q21: 0.7186615957
A22: Развитие транспортной системы Ленинградской области | B22: 24063813 | C22: =19776103.9-450000 -> 19326103.9 | D22: 12.57214688 | E22: 20626058.9 | F22: 16532502.3 | G22: 85.54493128 | H22: 11.26972771 | I22: 85.71400925 | J22: 17586899.1 | K22: 13677999.3 | L22: 82.73399303 | M22: 10.03704555 | N22: 13229629 | O22: 13229628.9 | P22: 96.72195918 | Q22: 8.77588914
A23: Развитие сельского хозяйства Ленинградской области | B23: 5124222.8 | C23: 4467597.1 | D23: 2.677151857 | E23: 5115190.9 | F23: 4513981.2 | G23: 101.0382337 | H23: 2.794853292 | I23: 99.82374108 | J23: 4426855.9 | K23: 3840854.9 | L23: 85.08796847 | M23: 2.526457567 | N23: 3843107.5 | O23: 3843107.5 | P23: 100.0586484 | Q23: 2.549329643
A24: Управление государственными финансами и государственным долгом Ленинградской области | B24: 6161472.4 | C24: 6161472.4 | D24: 3.219063246 | E24: 7595743.1 | F24: 7595743.1 | G24: 123.2780512 | H24: 4.150184817 | I24: 123.2780512 | J24: 8711698.5 | K24: 8711698.5 | L24: 114.6918529 | M24: 4.971866511 | N24: 8847999.8 | O24: 8847999.8 | P24: 101.5645778 | Q24: 5.869330528
A25: Устойчивое общественное развитие в Ленинградской области | B25: 2150595.4 | C25: 2149192.9 | D25: 1.123579262 | E25: 2002504.6 | F25: 2001811.2 | G25: 93.14246292 | H25: 1.094134448 | I25: 93.11396277 | J25: 929465.5 | K25: 929465.5 | L25: 46.43122688 | M25: 0.5304566489 | N25: 931538.6 | O25: 931538.6 | P25: 100.2230422 | Q25: 0.6179371684
A26: Содействие занятости населения Ленинградской области | B26: 975654.5 | C26: 483456 | D26: 0.5097310087 | E26: 794659.7 | F26: 496252.7 | G26: 102.6469213 | H26: 0.4341885419 | I26: 81.4488838 | J26: 789736.2 | K26: 491252.7 | L26: 98.99244881 | M26: 0.4507115307 | N26: 487673.7 | O26: 487673.7 | P26: 99.27145439 | Q26: 0.3234988924
A27: Развитие внутреннего и въездного туризма в Ленинградской области | B27: 214294.1 | C27: 195434.4 | D27: 0.1119580218 | E27: 164012.6 | F27: 164012.6 | G27: 83.92207308 | H27: 0.08961369458 | I27: 76.53621822 | J27: 139012.6 | K27: 139012.6 | L27: 84.75726865 | M27: 0.07933608935 | N27: 139012.6 | O27: 139012.6 | P27: 100 | Q27: 0.09221416313
A28: Комплексное развитие сельских территорий Ленинградской области | B28: 1814344.4 | C28: 1473628.9 | D28: 0.9479048179 | E28: 1469663.3 | F28: 1283934.6 | G28: 87.12740365 | H28: 0.8029990263 | I28: 81.00244364 | J28: 2007800 | K28: 1048941.5 | L28: 81.69742446 | M28: 1.145874548 | N28: 516840.3 | O28: 516840.3 | P28: 49.27255714 | Q28: 0.342846589
A29: Расходы на непрограммную деятельность | B29: 10998911.4 | C29: =10608353.5-443716 -> 10164637.5 | D29: =B29/$B$8*100 -> 5.746384814 | E29: 13641272.4 | F29: 12991645.9 | G29: 127.812191 | H29: 7.453359184 | I29: 124.0238411 | J29: 10367609.1 | K29: 9693175.1 | L29: 74.61083203 | M29: 5.916913732 | N29: 9284344.8 | O29: 9265480.3 | P29: 95.58767075 | Q29: 6.15878047
A30: Условно утвержденные расходы | J30: 4832187.8 | K30: 4832187.8 | N30: 10402946.9 | O30: 10402946.9
A31: Всего | B31: =B8+B30 -> 191405757.8 | C31: =C8+C30 -> 167690757 | E31: =E8+E30 -> 183021803.5 | F31: =F8+F30 -> 164796946.1 | G31: =F31/C31*100 -> 98.27431699 | I31: =E31/B31*100 -> 95.61980037 | J31: =J8+J30 -> 180052067.1 | K31: =K8+K30 -> 159938691.4 | L31: =K31/F31*100 -> 97.05197529 | N31: =N8+N30 -> 161152674.8 | O31: =O8+O30 -> 161133810.5 | P31: =O31/K31*100 -> 100.7472358

Sheet Лист2

Sheet Лист3
